bitfinex/quotes_BTCUSD_20251110
["timestamp","ask_amount","ask_price","bid_price","bid_amount"]
[1762753882116,0.05378421,106150.0,106140.0,0.19247858]
[1762753882314,0.23342359,106150.0,106140.0,0.19247858]
[1762753882530,0.23342359,106150.0,106140.0,0.53011361]
[1762753882531,0.04501097,106150.0,106140.0,0.53011361]
[1762753882733,0.02907097,106150.0,106140.0,0.53011361]
[1762753882920,0.02907097,106150.0,106140.0,0.60859599]
[1762753883554,0.01748097,106150.0,106140.0,0.60906572]
[1762753883921,0.23443359,106150.0,106140.0,0.60906572]
[1762753884123,0.23443359,106150.0,106140.0,0.60859599]
[1762753884547,0.23443359,106150.0,106140.0,0.27096096]
[1762753885567,0.04602097,106150.0,106140.0,0.27096096]
[1762753885776,0.01748097,106150.0,106140.0,0.60859599]
[1762753885981,0.01748097,106150.0,106140.0,0.60906572]
[1762753887017,0.01748097,106150.0,106140.0,0.27143069]
[1762753888258,0.25804359,106150.0,106140.0,0.00404821]
[1762753888405,0.59567862,106150.0,106140.0,0.00404821]
[1762753888814,0.70643088,106150.0,106140.0,0.00404821]
[1762753890671,0.70643088,106150.0,106140.0,0.00204821]
[1762753890864,0.70643088,106150.0,106140.0,4.821e-05]
[1762753891070,0.70743088,106150.0,106140.0,4.821e-05]
[1762753891320,0.70943088,106150.0,106140.0,4.821e-05]
[1762753892290,0.70065347,106150.0,106140.0,4.821e-05]
[1762753892755,0.70942886,106150.0,106140.0,4.821e-05]
[1762753892979,0.70949894,106150.0,106140.0,4.821e-05]
[1762753893167,0.64370637,106150.0,106140.0,4.821e-05]
[1762753893429,0.63493089,106150.0,106140.0,4.821e-05]
[1762753895237,0.29729586,106150.0,106140.0,4.821e-05]
[1762753895456,0.63493089,106150.0,106140.0,4.821e-05]
[1762753895873,0.29729586,106150.0,106140.0,4.821e-05]
[1762753896532,0.26111358,106150.0,106140.0,0.18847858]
[1762753896780,0.26111358,106150.0,106140.0,0.03967228]
[1762753896952,0.26111358,106150.0,106140.0,4.821e-05]
[1762753898130,0.26111358,106150.0,106140.0,0.18847858]
[1762753898329,0.26111358,106150.0,106140.0,4.821e-05]
[1762753899161,0.26158461,106150.0,106140.0,4.821e-05]
[1762753899344,0.70072346,106150.0,106140.0,4.821e-05]
[1762753901033,0.63540192,106150.0,106140.0,4.821e-05]
[1762753901240,0.29776689,106150.0,106140.0,0.18847858]
[1762753901422,0.29729586,106150.0,106140.0,0.03778764]
[1762753901624,0.29776966,106150.0,106140.0,4.821e-05]
[1762753902251,0.28021593,106150.0,106140.0,4.821e-05]
[1762753902909,0.61785096,106150.0,106140.0,4.821e-05]
[1762753903122,0.63494213,106150.0,106140.0,4.821e-05]
[1762753903360,0.7007347,106150.0,106140.0,4.821e-05]
[1762753905116,0.7290244,106150.0,106140.0,4.821e-05]
[1762753905362,0.7114622,106150.0,106140.0,4.821e-05]
[1762753906633,0.7114622,106150.0,106140.0,0.00161188]
[1762753908199,1.0344622,106150.0,106140.0,0.00161188]
[1762753908403,2.22262623,106150.0,106140.0,0.00161188]
[1762753908613,2.52427692,106150.0,106140.0,1e-08]
[1762753908828,2.54306012,106150.0,106140.0,1e-08]
[1762753909033,2.66139694,106150.0,106140.0,1e-08]
[1762753909448,2.66138288,106150.0,106140.0,1e-08]
[1762753909655,2.73176314,106150.0,106140.0,1e-08]
[1762753909860,2.73076314,106150.0,106140.0,1e-08]
[1762753910081,2.73376314,106150.0,106140.0,1e-08]
[1762753910297,2.71170213,106150.0,106140.0,1e-08]
[1762753910500,2.70570213,106150.0,106140.0,1e-08]
[1762753910711,2.71570213,106150.0,106140.0,1e-08]
[1762753910887,2.26301127,106150.0,106140.0,1e-08]
[1762753911349,2.28807228,106150.0,106140.0,1e-08]
[1762753911754,2.26033772,106150.0,106140.0,1e-08]
[1762753912582,2.21616305,106150.0,106140.0,1e-08]
[1762753912763,2.19594202,106150.0,106140.0,1e-08]
[1762753912911,2.23523768,106150.0,106140.0,1e-08]
[1762753915155,2.21612402,106150.0,106140.0,1e-08]
[1762753916048,2.19594202,106150.0,106140.0,1e-08]
[1762753916580,2.23746202,106150.0,106140.0,1e-08]
[1762753917203,2.23699099,106150.0,106140.0,1e-08]
[1762753917397,2.25763084,106150.0,106140.0,1e-08]
[1762753918641,2.23746202,106150.0,106140.0,1e-08]
[1762753919604,2.19594202,106150.0,106140.0,1e-08]
[1762753919810,2.25762866,106150.0,106140.0,1e-08]
[1762753920116,2.35683866,106150.0,106140.0,1e-08]
[1762753920519,2.35636763,106150.0,106140.0,1e-08]
[1762753920720,2.03736667,106150.0,106140.0,1e-08]
[1762753920921,2.04736666,106150.0,106140.0,1e-08]
[1762753921123,2.02720002,106150.0,106140.0,1e-08]
[1762753921708,0.85320476,106150.0,106140.0,1e-08]
[1762753922130,0.88985807,106150.0,106140.0,1e-08]
[1762753922707,0.89985806,106150.0,106140.0,1e-08]
[1762753923332,0.88985807,106150.0,106140.0,1e-08]
[1762753924568,0.89938703,106150.0,106140.0,1e-08]
[1762753924783,0.99748876,106150.0,106140.0,1e-08]
[1762753925567,1.55070299,106150.0,106140.0,1e-08]
[1762753926840,1.55117402,106150.0,106140.0,1e-08]
[1762753927051,1.54117403,106150.0,106140.0,1e-08]
[1762753927292,1.55117402,106150.0,106140.0,1e-08]
[1762753927676,1.55070299,106150.0,106140.0,1e-08]
[1762753927888,1.54117403,106150.0,106140.0,1e-08]
[1762753928303,1.55117402,106150.0,106140.0,1e-08]
[1762753928643,1.54117403,106150.0,106140.0,1e-08]
[1762753928855,0.93215308,106150.0,106140.0,1e-08]
[1762753929107,1.25468103,106150.0,106140.0,1e-08]
[1762753929322,0.89460812,106150.0,106140.0,1e-08]
[1762753929545,0.38248286,106150.0,106140.0,1e-08]
[1762753929786,0.41866514,106150.0,106140.0,1e-08]
[1762753929995,0.70548286,106150.0,106140.0,1e-08]
[1762753930214,0.18843037,106140.0,106130.0,0.00046979]
[1762753930431,0.22746037,106140.0,106120.0,0.20730649]
[1762753930645,0.22746037,106140.0,106130.0,0.00023367]
[1762753931838,0.22946037,106140.0,106130.0,0.00023367]
[1762753932045,0.23046037,106140.0,106130.0,0.00023367]
[1762753932692,0.24278037,106140.0,106130.0,0.00023367]
[1762753934612,0.7959946,106140.0,106130.0,0.00023367]
[1762753935565,0.89409633,106140.0,106130.0,0.00023367]
[1762753935981,0.7959946,106140.0,106130.0,0.00023367]
[1762753936962,0.67454623,106140.0,106130.0,0.00023367]
[1762753944610,0.71072851,106140.0,106130.0,0.00023367]
[1762753944828,2.94467601,106140.0,106130.0,0.00023367]
[1762753945026,2.94467601,106140.0,106110.0,0.0004712]
[1762753945027,0.97941402,106120.0,106110.0,0.0004712]
[1762753945229,0.18848364,106110.0,106100.0,0.1176]
[1762753945431,0.6707995,106110.0,106100.0,0.1176482]
[1762753947232,0.23903364,106110.0,106100.0,0.1176482]
[1762753947445,0.23903364,106110.0,106100.0,0.1206482]
[1762753947869,0.23903364,106110.0,106100.0,0.1226482]
[1762753948670,0.6707995,106110.0,106100.0,0.1226482]
[1762753950172,0.23903364,106110.0,106100.0,0.1349801]
[1762753950586,0.23903364,106110.0,106100.0,0.1226482]
[1762753950797,0.23903364,106110.0,106100.0,0.31114961]
[1762753951211,0.21594364,106110.0,106100.0,0.31114961]
[1762753952041,0.23903364,106110.0,106100.0,0.31114961]
[1762753952483,0.23903364,106110.0,106100.0,0.1226482]
[1762753952967,0.49243073,106110.0,106100.0,0.1226482]
[1762753953707,0.49243073,106110.0,106100.0,0.31114961]
[1762753953909,0.23903364,106110.0,106100.0,0.31114961]
[1762753954314,0.49243073,106110.0,106100.0,0.1226482]
[1762753954804,0.23903364,106110.0,106100.0,0.31114961]
[1762753955835,0.23903364,106110.0,106100.0,0.31162086]
[1762753956011,0.21594364,106110.0,106100.0,0.40995256]
[1762753956506,0.21594364,106110.0,106100.0,0.31185083]
[1762753956722,0.23903364,106110.0,106100.0,0.12334942]
[1762753957755,0.49243073,106110.0,106100.0,0.12334942]
[1762753957905,0.23903364,106110.0,106100.0,0.31185083]
[1762753959037,0.23903364,106110.0,106100.0,0.12334942]
[1762753959038,0.49243073,106110.0,106100.0,0.12334942]
[1762753959237,0.23903364,106110.0,106100.0,0.31185083]
[1762753962251,0.23903364,106110.0,106100.0,0.40995256]
[1762753964560,0.23903364,106110.0,106100.0,0.22145115]
[1762753964826,0.23903364,106110.0,106100.0,0.12334942]
[1762753965678,0.49243073,106110.0,106100.0,0.12334942]
[1762753966979,0.23903364,106110.0,106100.0,0.31185083]
[1762753967637,0.23903364,106110.0,106100.0,0.56524792]
[1762753967853,0.01245,106110.0,106100.0,0.66334965]
[1762753968072,0.01245,106110.0,106100.0,0.6638209]
[1762753968280,0.02746,106110.0,106100.0,0.6638209]
[1762753969339,0.22400588,106120.0,106110.0,0.18848364]
[1762753969790,0.24047588,106120.0,106110.0,0.18848364]
[1762753970006,0.18848364,106110.0,106100.0,0.66311968]
[1762753970214,0.21624364,106110.0,106100.0,0.66111968]
[1762753970429,0.02776,106110.0,106100.0,0.66064843]
[1762753970653,0.02776,106110.0,106100.0,0.66111968]
[1762753970907,0.02776,106110.0,106100.0,0.65811968]
[1762753971353,0.02776,106110.0,106100.0,0.66011968]
[1762753971928,0.02776,106110.0,106100.0,0.66311968]
[1762753972368,0.01129,106110.0,106100.0,0.66311968]
[1762753972521,0.19977364,106110.0,106100.0,0.66311968]
[1762753973315,0.01129,106110.0,106100.0,0.66311968]
[1762753973667,0.19977364,106110.0,106100.0,0.66311968]
[1762753973874,0.21601364,106110.0,106100.0,0.66311968]
[1762753974088,0.23998364,106110.0,106100.0,0.66264843]
[1762753974297,0.23998364,106110.0,106100.0,0.40925134]
[1762753975394,0.01129,106110.0,106100.0,0.40925134]
[1762753975605,0.01129,106110.0,106100.0,0.40972259]
[1762753975812,0.01129,106110.0,106100.0,0.6638209]
[1762753976112,0.02753,106110.0,106100.0,0.6638209]
[1762753976325,0.01129,106110.0,106100.0,0.6638209]
[1762753977102,0.02753,106110.0,106100.0,0.6638209]
[1762753978520,0.02753,106110.0,106100.0,0.41042381]
[1762753978742,0.0515,106110.0,106100.0,0.6638209]
[1762753979259,0.01129,106110.0,106100.0,0.6638209]
[1762753979484,0.20091588,106120.0,106110.0,0.18848364]
[1762753979701,0.01245,106120.0,106110.0,0.50102124]
[1762753979940,0.01245,106120.0,106110.0,0.29456836]
[1762753980182,0.23430676,106130.0,106120.0,0.18846588]
[1762753980698,0.24110812,106130.0,106120.0,0.18846588]
[1762753980948,0.24110812,106130.0,106110.0,0.87063733]
[1762753981158,0.24110812,106130.0,106110.0,0.86963733]
[1762753981594,0.20189812,106130.0,106120.0,0.46070955]
[1762753981780,0.01345,106130.0,106120.0,0.5399647]
[1762753982016,0.001,106130.0,106120.0,0.5399647]
[1762753982428,0.002,106130.0,106120.0,0.5399647]
[1762753982596,0.001,106130.0,106120.0,0.5399647]
[1762753983381,0.48801004,106140.0,106120.0,0.5399647]
[1762753983563,0.18944812,106130.0,106120.0,0.54043564]
[1762753983781,0.20162812,106130.0,106120.0,0.44186297]
[1762753984201,0.24083812,106130.0,106120.0,0.44186297]
[1762753984406,0.02842,106130.0,106120.0,0.44286297]
[1762753984944,0.21686812,106130.0,106120.0,0.44333368]
[1762753985154,0.02842,106130.0,106120.0,0.44286297]
[1762753985600,0.55745428,106150.0,106130.0,0.18844812]
[1762753985822,0.18843037,106140.0,106130.0,0.46069002]
[1762753986037,0.23445428,106150.0,106130.0,0.44184521]
[1762753986256,0.23398325,106150.0,106130.0,0.44231588]
[1762753986470,0.18843037,106140.0,106130.0,0.48260803]
[1762753986679,0.18843037,106140.0,106130.0,0.44184521]
[1762753986898,0.20061037,106140.0,106130.0,0.44184521]
[1762753987103,0.24082037,106140.0,106120.0,0.77295743]
[1762753987309,0.21686812,106130.0,106120.0,0.32167117]
[1762753987552,0.18846588,106120.0,106110.0,0.0678036]
[1762753987769,0.18848364,106110.0,106100.0,0.1176482]
[1762753988009,0.49427073,106110.0,106100.0,0.30614961]
[1762753988215,0.24087364,106110.0,106100.0,0.30614961]
[1762753988422,0.49427073,106110.0,106100.0,0.20062813]
[1762753988628,0.24087364,106110.0,106100.0,0.20062813]
[1762753988836,0.02842,106110.0,106100.0,0.64252663]
[1762753989055,0.21690364,106110.0,106100.0,0.64299788]
[1762753989263,0.01218,106110.0,106100.0,0.64499788]
[1762753989471,0.21690364,106110.0,106100.0,0.64499788]
[1762753989654,0.21690364,106110.0,106100.0,0.64452663]
[1762753990343,0.21690364,106110.0,106100.0,0.64499787]
[1762753990550,0.21690364,106110.0,106100.0,0.64752663]
[1762753991202,0.02842,106110.0,106100.0,0.64799653]
[1762753991418,0.21690364,106110.0,106100.0,0.39460078]
[1762753991636,0.24087364,106110.0,106100.0,0.64752663]
[1762753992061,0.21690364,106110.0,106100.0,0.5645467]
[1762753992251,0.02842,106110.0,106100.0,0.56501661]
[1762753992482,0.02842,106110.0,106100.0,0.56501794]
[1762753992923,0.01218,106110.0,106100.0,0.56501794]
[1762753993575,0.01218,106110.0,106100.0,0.5645467]
[1762753994558,0.22459812,106130.0,106110.0,0.18848364]
[1762753994783,0.22459812,106130.0,106110.0,0.20227854]
[1762753994784,0.20064588,106120.0,106110.0,0.20227854]
[1762753994996,0.20064588,106120.0,106110.0,0.44187461]
[1762753994997,0.02842,106120.0,106110.0,0.44187461]
[1762753995202,0.24085588,106120.0,106110.0,0.44234536]
[1762753995409,0.24085588,106120.0,106110.0,0.44187461]
[1762753995615,0.21688588,106120.0,106110.0,0.48216676]
[1762753995820,0.01218,106120.0,106110.0,0.80135642]
[1762753996005,0.03615,106130.0,106120.0,0.18846588]
[1762753996134,0.03615,106130.0,106110.0,0.86963122]
[1762753996135,0.22459812,106130.0,106110.0,0.86963122]
[1762753996351,0.02842,106120.0,106110.0,0.61623413]
[1762753996755,0.21688588,106120.0,106110.0,0.61623413]
[1762753996977,0.21688588,106120.0,106110.0,0.61576293]
[1762753998013,0.21688588,106120.0,106110.0,0.54995933]
[1762753998190,0.21688588,106120.0,106110.0,0.55095933]
[1762753999018,0.21688588,106120.0,106110.0,0.29756224]
[1762753999572,0.21688588,106120.0,106110.0,0.25727009]
[1762753999986,0.21688588,106120.0,106110.0,0.32507369]
[1762754000192,0.01218,106120.0,106110.0,0.66281093]
[1762754000403,0.22459812,106130.0,106120.0,0.18846588]
[1762754000607,0.01218,106130.0,106120.0,0.18846588]
[1762754000817,0.02842,106130.0,106120.0,0.18846588]
[1762754001025,0.24083812,106130.0,106120.0,0.18846588]
[1762754001458,0.24083812,106130.0,106120.0,0.27368738]
[1762754001668,0.24083812,106130.0,106120.0,0.0852215]
[1762754001873,0.24183812,106130.0,106120.0,0.27368738]
[1762754002078,0.21786812,106130.0,106120.0,0.27368738]
[1762754002282,0.24231812,106130.0,106120.0,0.27368738]
[1762754003106,0.01318,106130.0,106120.0,0.27368738]
[1762754003273,0.01218,106130.0,106120.0,0.27368738]
[1762754003478,0.21003188,106140.0,106130.0,0.18844812]
[1762754003682,0.23446325,106150.0,106140.0,0.18843037]
[1762754004034,0.21628037,106140.0,106130.0,0.2416205]
[1762754004207,0.24073037,106140.0,106130.0,0.2416205]
[1762754004409,0.01161,106140.0,106130.0,0.2416205]
[1762754004755,0.20104037,106140.0,106130.0,0.2416205]
[1762754004962,0.01261,106140.0,106130.0,0.2416205]
[1762754005203,0.20104037,106140.0,106130.0,0.2416205]
[1762754005422,0.01261,106140.0,106130.0,0.2416205]
[1762754005623,0.21728037,106140.0,106130.0,0.2416205]
[1762754005786,0.24173037,106140.0,106120.0,0.60389896]
[1762754005980,0.0523,106130.0,106120.0,0.60389896]
[1762754006216,0.01161,106140.0,106130.0,0.18844812]
[1762754006378,0.01161,106140.0,106130.0,0.20276437]
[1762754006573,0.20004037,106140.0,106130.0,0.21029293]
[1762754006775,0.21628037,106140.0,106130.0,0.001]
[1762754006986,0.91620485,106140.0,106130.0,0.001]
[1762754007228,0.24073037,106140.0,106130.0,0.001]
[1762754007432,0.91620485,106140.0,106130.0,0.001]
[1762754007811,0.57846761,106140.0,106130.0,0.001]
[1762754008047,0.24073037,106140.0,106130.0,0.001]
[1762754008244,0.57846761,106140.0,106130.0,0.001]
[1762754008996,0.57846761,106140.0,106130.0,0.003]
[1762754009437,0.24073037,106140.0,106130.0,0.003]
[1762754009637,0.57846761,106140.0,106130.0,0.003]
[1762754011278,0.91620485,106140.0,106130.0,0.003]
[1762754012064,0.91620485,106140.0,106130.0,0.001]
[1762754012491,0.91620485,106140.0,106120.0,0.00023369]
[1762754012492,0.18844812,106130.0,106120.0,0.00023369]
[1762754012694,0.57848536,106130.0,106120.0,0.00023369]
[1762754013264,0.24074812,106130.0,106120.0,0.00023369]
[1762754013469,0.24074812,106130.0,106120.0,0.18869957]
[1762754013674,0.24074812,106130.0,106120.0,0.19169957]
[1762754014041,0.24074812,106130.0,106120.0,0.00323369]
[1762754014853,0.57848536,106130.0,106120.0,0.00323369]
[1762754015074,0.24074812,106130.0,106120.0,0.00323369]
[1762754017278,0.24074812,106130.0,106120.0,0.19169957]
[1762754017420,0.24074812,106130.0,106120.0,0.04318374]
[1762754017627,0.24074812,106130.0,106120.0,0.00323369]
[1762754019002,0.57848536,106130.0,106120.0,0.00323369]
[1762754019356,0.24074812,106130.0,106120.0,0.00323369]
[1762754020362,0.57848536,106130.0,106120.0,0.00323369]
[1762754023384,0.68046021,106130.0,106120.0,0.00323369]
[1762754023597,0.68093133,106130.0,106120.0,0.00323369]
[1762754024888,0.61513876,106130.0,106120.0,0.00323369]
[1762754025098,0.61513876,106130.0,106120.0,0.00023369]
[1762754025484,0.61613876,106130.0,106120.0,0.00023369]
[1762754026231,0.24221924,106130.0,106120.0,0.00023369]
[1762754026431,0.57995648,106130.0,106120.0,0.00023369]
[1762754028230,0.24174812,106130.0,106120.0,0.18869957]
[1762754028411,0.24174812,106130.0,106120.0,0.26870273]
[1762754029867,0.24174812,106130.0,106120.0,0.08023685]
[1762754030074,0.24174812,106130.0,106120.0,0.00023369]
[1762754030521,0.24174812,106130.0,106120.0,0.01908027]
[1762754030723,0.24174812,106130.0,106120.0,0.00023369]
[1762754035007,0.57948536,106130.0,106120.0,0.00023369]
[1762754036668,0.64527793,106130.0,106120.0,0.00023369]
[1762754042282,0.64574905,106130.0,106120.0,0.00023369]
[1762754042681,0.24221924,106130.0,106120.0,0.00023369]
[1762754042929,0.24221924,106130.0,106120.0,0.18869957]
[1762754043156,0.24174812,106130.0,106120.0,0.00023369]
[1762754043557,0.24221924,106130.0,106120.0,0.18869957]
[1762754043753,0.24174812,106130.0,106120.0,0.18869957]
[1762754044136,0.24174812,106130.0,106120.0,0.00023369]
[1762754044488,0.57995648,106130.0,106120.0,0.00023369]
[1762754045131,0.24221924,106130.0,106120.0,0.00023369]
[1762754046110,0.57995648,106130.0,106120.0,0.00023369]
[1762754046325,0.24174812,106130.0,106120.0,0.00023369]
[1762754046560,0.57995648,106130.0,106120.0,0.00023369]
[1762754051994,0.24221924,106130.0,106120.0,0.00023369]
[1762754052423,0.57995648,106130.0,106120.0,0.00023369]
[1762754053096,0.64527793,106130.0,106120.0,0.00023369]
[1762754053602,0.64574905,106130.0,106120.0,0.00023369]
[1762754053978,0.57995648,106130.0,106120.0,0.00023369]
[1762754056650,0.64574905,106130.0,106120.0,0.00023369]
[1762754057631,0.57995648,106130.0,106120.0,0.00023369]
[1762754059023,0.7488752,106130.0,106120.0,0.00023369]
[1762754059229,0.81466777,106130.0,106120.0,0.00023369]
[1762754059744,0.7488752,106130.0,106120.0,0.00023369]
[1762754059957,0.24221924,106130.0,106120.0,0.00023369]
[1762754060199,0.7488752,106130.0,106120.0,0.00023369]
[1762754060400,0.4950761,106130.0,106120.0,0.18869957]
[1762754060593,0.4950761,106130.0,106120.0,0.25368207]
[1762754061212,0.24174812,106130.0,106120.0,0.06521619]
[1762754061389,0.24174812,106130.0,106120.0,0.08406277]
[1762754062415,0.4950761,106130.0,106120.0,0.08406277]
[1762754062677,0.4950761,106130.0,106120.0,0.06521619]
[1762754063301,0.81419665,106130.0,106120.0,0.00023369]
[1762754063504,1.06752463,106130.0,106120.0,0.00023369]
[1762754064296,0.81419665,106130.0,106120.0,0.00023369]
[1762754064497,1.86369085,106130.0,106120.0,0.00023369]
[1762754064721,1.42717803,106130.0,106120.0,0.00023369]
[1762754064926,1.49699443,106130.0,106120.0,0.00023369]
[1762754065128,1.49652331,106130.0,106120.0,0.00023369]
[1762754065292,1.49699443,106130.0,106120.0,0.00023369]
[1762754065487,1.49652331,106130.0,106120.0,0.00023369]
[1762754065691,1.49699443,106130.0,106120.0,0.00023369]
[1762754068087,1.24366645,106130.0,106120.0,0.00023369]
[1762754068317,1.20167533,106130.0,106120.0,0.00023369]
[1762754068518,1.49699443,106130.0,106120.0,0.00023369]
[1762754069377,1.24366645,106130.0,106120.0,0.00023369]
[1762754069583,1.20214645,106130.0,106120.0,0.00023369]
[1762754069775,1.24366645,106130.0,106120.0,0.00023369]
[1762754077790,1.20214645,106130.0,106120.0,0.00023369]
[1762754078008,1.24366645,106130.0,106120.0,0.00023369]
[1762754078215,0.73701049,106130.0,106120.0,0.00023369]
[1762754078409,1.24366645,106130.0,106120.0,0.00023369]
[1762754079165,1.20214645,106130.0,106120.0,0.00023369]
[1762754079370,1.24366645,106130.0,106120.0,0.00023369]
[1762754080154,0.88255478,106130.0,106120.0,0.00023369]
[1762754080358,0.24174812,106130.0,106120.0,0.00023369]
[1762754081956,0.24174812,106130.0,106120.0,0.18869957]
[1762754082172,0.24174812,106130.0,106120.0,0.28370976]
[1762754082331,0.24174812,106130.0,106120.0,0.09524388]
[1762754082543,0.4950761,106130.0,106120.0,0.00023369]
[1762754082759,0.24174812,106130.0,106120.0,0.18869957]
[1762754084566,0.21729812,106130.0,106120.0,0.45687604]
[1762754084810,0.24100812,106130.0,106120.0,0.44202755]
[1762754085058,0.24100812,106130.0,106120.0,0.18869957]
[1762754085253,0.24100812,106130.0,106120.0,0.20754615]
[1762754085726,0.24100812,106130.0,106120.0,0.304441]
[1762754085938,0.24100812,106130.0,106120.0,0.09712854]
[1762754087440,0.24100812,106130.0,106120.0,0.28559442]
[1762754087683,0.24100812,106130.0,106120.0,0.09712854]
[1762754088062,0.24100812,106130.0,106120.0,0.28559442]
[1762754089107,0.22464816,106120.0,106100.0,0.1176]
[1762754089320,1.03665986,106110.0,106100.0,0.1176482]
[1762754089512,0.49382162,106110.0,106100.0,0.1176482]
[1762754089842,0.24049364,106110.0,106100.0,0.12948015]
[1762754090040,0.49382162,106110.0,106100.0,0.12948015]
[1762754090414,0.49382162,106110.0,106100.0,0.1176482]
[1762754091438,0.49482162,106110.0,106100.0,0.1176482]
[1762754094044,0.24149364,106110.0,106100.0,0.1176482]
[1762754094229,0.49482162,106110.0,106100.0,0.1176482]
[1762754095460,0.7481496,106110.0,106100.0,0.1176482]
[1762754096755,0.49482162,106110.0,106100.0,0.1176482]
[1762754098044,0.49482162,106110.0,106100.0,0.17366467]
[1762754099011,0.49482162,106110.0,106100.0,0.1176482]
[1762754099987,0.49482162,106110.0,106100.0,0.11811571]
[1762754100438,0.21728364,106110.0,106100.0,0.32546726]
[1762754100693,0.21728364,106110.0,106100.0,0.11811571]
[1762754101036,0.49441162,106110.0,106100.0,0.11811571]
[1762754101233,0.24108364,106110.0,106100.0,0.11811571]
[1762754101863,0.24108364,106110.0,106100.0,0.32546726]
[1762754102090,0.24108364,106110.0,106100.0,0.30661712]
[1762754102730,0.21728364,106110.0,106100.0,0.40471885]
[1762754102897,0.001,106110.0,106100.0,0.97763863]
[1762754103661,0.20948052,106130.0,106120.0,0.18846588]
[1762754103888,0.23328052,106130.0,106120.0,0.20731246]
[1762754104087,0.24953052,106130.0,106120.0,0.24760461]
[1762754104296,0.24953052,106130.0,106120.0,0.22875803]
[1762754104707,0.24010812,106130.0,106120.0,0.22875803]
[1762754104904,0.20305812,106130.0,106120.0,0.22875803]
[1762754105075,0.21930812,106130.0,106120.0,0.22875803]
[1762754105600,0.24410812,106130.0,106120.0,0.04029215]
[1762754105974,0.4934361,106130.0,106120.0,0.22875803]
[1762754106178,0.4934361,106130.0,106120.0,0.04029215]
[1762754106407,0.4934361,106130.0,106120.0,0.04329215]
[1762754106597,0.4934361,106130.0,106120.0,0.23175803]
[1762754106803,0.24010812,106130.0,106120.0,0.04329215]
[1762754107216,0.24010812,106130.0,106120.0,0.003]
[1762754107622,0.24010812,106130.0,106120.0,0.19146588]
[1762754107871,0.24010812,106130.0,106120.0,0.21031246]
[1762754109124,0.02786,106130.0,106120.0,0.21031246]
[1762754109541,0.21630812,106130.0,106120.0,0.21031246]
[1762754109743,0.24010812,106130.0,106120.0,0.21031246]
[1762754109951,0.02786,106130.0,106120.0,0.30092661]
[1762754110159,0.02786,106130.0,106120.0,0.28208003]
[1762754110374,0.01161,106130.0,106120.0,0.53540801]
[1762754110579,0.23344325,106150.0,106130.0,0.18844812]
[1762754110783,0.18843037,106140.0,106130.0,0.06709461]
[1762754110958,0.20024037,106140.0,106130.0,0.06662454]
[1762754111175,0.21649037,106140.0,106130.0,0.25507266]
[1762754111401,0.21649037,106140.0,106130.0,0.04777973]
[1762754111643,0.18844812,106130.0,106120.0,0.00147116]
[1762754111868,0.74696408,106130.0,106120.0,0.001]
[1762754112480,0.18846588,106120.0,106110.0,0.18917304]
[1762754112694,0.24032588,106120.0,106110.0,0.18870188]
[1762754113642,0.24032588,106120.0,106110.0,0.19370188]
[1762754116310,0.24032588,106120.0,106110.0,0.29180361]
[1762754116631,0.05186,106120.0,106110.0,0.29180361]
[1762754116801,0.24032588,106120.0,106110.0,0.29227481]
[1762754117017,0.24032588,106120.0,106110.0,0.29180361]
[1762754117264,0.05186,106120.0,106110.0,0.29180361]
[1762754117444,0.02806,106120.0,106110.0,0.29227481]
[1762754117650,0.02806,106120.0,106110.0,0.54560279]
[1762754118112,0.21652588,106120.0,106110.0,0.54560279]
[1762754118311,0.21652588,106120.0,106110.0,0.29180361]
[1762754118517,0.21652588,106120.0,106110.0,0.19370188]
[1762754119131,0.24032588,106120.0,106110.0,0.19371737]
[1762754119538,0.49365386,106120.0,106110.0,0.19371737]
[1762754119739,0.24032588,106120.0,106110.0,0.19371737]
[1762754119950,0.24032588,106120.0,106110.0,0.00523373]
[1762754120516,0.24032588,106120.0,106110.0,0.19371737]
[1762754121286,0.24032588,106120.0,106110.0,0.00523373]
[1762754121713,0.57809683,106120.0,106110.0,0.00523373]
[1762754121925,0.91586778,106120.0,106110.0,0.00523373]
[1762754122132,0.57809683,106120.0,106110.0,0.00523373]
[1762754122513,0.91586778,106120.0,106110.0,0.00323373]
[1762754122667,0.95205006,106120.0,106110.0,0.00023373]
[1762754122866,1.05015179,106120.0,106110.0,0.00023373]
[1762754123117,0.95205006,106120.0,106110.0,0.00123373]
[1762754124601,0.99357006,106120.0,106110.0,0.00123373]
[1762754125186,0.99404122,106120.0,106110.0,0.00123373]
[1762754125361,0.65627027,106120.0,106110.0,0.00123373]
[1762754125562,0.61475027,106120.0,106110.0,0.00123373]
[1762754125769,0.65627027,106120.0,106110.0,0.00123373]
[1762754127750,0.27697932,106120.0,106110.0,0.00123373]
[1762754127958,0.61475027,106120.0,106110.0,0.00123373]
[1762754130352,0.27697932,106120.0,106110.0,0.00123373]
[1762754130607,0.61475027,106120.0,106110.0,0.00123373]
[1762754130970,0.24079704,106120.0,106110.0,0.00123373]
[1762754131369,0.21699704,106120.0,106110.0,0.18971737]
[1762754131578,0.18846588,106120.0,106110.0,0.61743111]
[1762754131769,0.18846588,106120.0,106110.0,0.27966016]
[1762754132164,0.22457812,106130.0,106120.0,0.18846588]
[1762754132612,0.24109812,106130.0,106110.0,0.28013092]
[1762754132835,0.24109812,106130.0,106120.0,0.01884658]
[1762754133062,0.20029588,106120.0,106110.0,0.27913092]
[1762754133254,0.01183,106120.0,106110.0,0.27866016]
[1762754133414,0.22457812,106130.0,106120.0,0.18846588]
[1762754133630,0.03613,106130.0,106120.0,0.20071649]
[1762754133968,0.01181,106130.0,106120.0,0.23691697]
[1762754134418,0.01381,106130.0,106120.0,0.23691697]
[1762754134600,0.20225812,106130.0,106120.0,0.18846588]
[1762754134803,0.21877812,106130.0,106120.0,0.01884658]
[1762754135009,0.21877812,106130.0,106110.0,0.18918813]
[1762754135010,0.18846588,106120.0,106110.0,0.18918813]
[1762754135208,0.24109812,106130.0,106120.0,0.18846588]
[1762754135433,0.24109812,106130.0,106120.0,0.18946588]
[1762754135434,0.20025812,106130.0,106120.0,0.18946588]
[1762754135837,0.01181,106130.0,106120.0,0.20334198]
[1762754135958,0.01181,106130.0,106120.0,0.20234198]
[1762754136367,0.01181,106130.0,106120.0,0.27527209]
[1762754136615,0.01181,106130.0,106120.0,0.26139599]
[1762754137365,0.20025812,106130.0,106120.0,0.26139599]
[1762754137772,0.01181,106130.0,106120.0,0.26139599]
[1762754137982,0.01181,106130.0,106120.0,0.26239599]
[1762754138213,0.20025812,106130.0,106120.0,0.26239599]
[1762754138414,0.24109812,106130.0,106120.0,0.26239599]
[1762754141241,0.05265,106130.0,106120.0,0.26239599]
[1762754141614,0.02833,106130.0,106120.0,0.26239599]
[1762754142235,0.21677812,106130.0,106120.0,0.26239599]
[1762754143091,0.02833,106130.0,106120.0,0.26239599]
[1762754143294,0.01181,106130.0,106120.0,0.26239599]
[1762754143699,0.20966188,106140.0,106130.0,0.18844812]
[1762754143923,0.20966188,106140.0,106130.0,0.2589566]